fUSD/lending_fUSD_20260311
["ID","MTS","AMOUNT","RATE_DAILY","PERIOD"]
[408222520,1773261040939,-1000.0,0.00019874,2]
[408222521,1773261040949,-500.0,0.00019887,2]
[408222522,1773261040958,-200.0,0.00019887,2]
[408222523,1773261040967,-500.0,0.00019887,2]
[408222524,1773261040976,-500.0,0.00019887,2]
[408222525,1773261040985,-500.0,0.00019887,2]
[408222526,1773261040994,-500.0,0.00019887,2]
[408222527,1773261041003,-500.0,0.00019887,2]
[408222528,1773261041013,-1000.0,0.00019894,2]
[408222529,1773261041022,-1000.0,0.00019896,2]
[408222530,1773261041031,-618.42945896,0.00019899,2]
[408222531,1773261041040,-500.0,0.00019899,2]
[408222532,1773261041050,-500.0,0.00019899,2]
[408222533,1773261041059,-224.68015401,0.00019899,2]
[408222534,1773261041068,-500.0,0.00019899,2]
[408222535,1773261041077,-500.0,0.00019899,2]
[408222536,1773261041087,-500.0,0.00019899,2]
[408222537,1773261041097,-250.0,0.000199,2]
[408222538,1773261041108,-3160.7594,0.000199,2]
[408222539,1773261041117,-5630.88454436,0.000199,2]
[408222540,1773261041126,-2305.20397352,0.000199,2]
[408222541,1773261041136,-454.9024074,0.000199,2]
[408222542,1773261041145,-8254.8481848,0.000199,2]
[408222543,1773261041156,-300.0,0.000199,7]
[408222544,1773261041167,-415.38420546,0.000199,2]
[408222545,1773261041178,-2000.0,0.000199,2]
[408222546,1773261041187,-18671.86794624,0.000199,2]
[408222547,1773261041198,-360.64166544,0.000199,2]
[408222548,1773261041220,-4523.86177647,0.000199,2]
[408222549,1773261041231,-4313.0,0.000199,2]
[408222550,1773261041240,-1000.0,0.00019902,2]
[408222551,1773261041251,-1000.0,0.00019904,2]
[408222552,1773261041259,-1000.0,0.00019916,2]
[408222553,1773261041269,-1000.0,0.00019918,2]
[408222554,1773261041278,-150.0,0.00019921,2]
[408222555,1773261041288,-150.0,0.00019922,2]
[408222556,1773261041298,-150.0,0.00019925,2]
[408222557,1773261041307,-1000.0,0.0001993,2]
[408222558,1773261041316,-1000.0,0.00019936,2]
[408222559,1773261041325,-151.0,0.00019936,2]
[408222560,1773261041334,-151.0,0.00019936,2]
[408222561,1773261041343,-151.0,0.00019936,2]
[408222562,1773261041352,-151.0,0.00019936,2]
[408222563,1773261041361,-159.218325,0.00019936,2]
[408222564,1773261041370,-159.218325,0.00019936,2]
[408222565,1773261041379,-159.218325,0.00019936,2]
[408222566,1773261041390,-159.218325,0.00019936,2]
[408222567,1773261041400,-150.0,0.00019939,2]
[408222568,1773261041410,-1000.0,0.00019942,2]
[408222569,1773261041419,-500.0,0.00019942,2]
[408222570,1773261041430,-500.0,0.00019942,2]
[408222571,1773261041440,-500.0,0.00019942,2]
[408222572,1773261041450,-500.0,0.00019942,2]
[408222573,1773261041460,-615.25102143,0.00019942,2]
[408222574,1773261041472,-500.0,0.00019942,2]
[408222575,1773261041484,-6264.53,0.00019945,2]
[408222576,1773261041494,-1000.0,0.00019951,2]
[408222577,1773261041503,-250.0,0.00019952,2]
[408222578,1773261041512,-991.13952392,0.0001996,2]
[408222579,1773261041525,-250.0,0.00019962,2]
[408222580,1773261041534,-720.0,0.00019964,2]
[408222581,1773261041543,-1000.0,0.00019967,2]
[408222582,1773261041552,-5137.0,0.00019972,2]
[408222583,1773261041563,-1000.0,0.00019981,2]
[408222584,1773261041572,-1000.0,0.00019985,2]
[408222585,1773261041581,-1000.0,0.00019988,2]
[408222586,1773261041592,-527.14664844,0.0001999,2]
[408222587,1773261041603,-527.14664844,0.0001999,2]
[408222588,1773261041613,-527.14664844,0.0001999,2]
[408222589,1773261041622,-150.0,0.00019996,2]
[408222590,1773261041632,-500.0,0.00019997,2]
[408222591,1773261041642,-500.0,0.00019997,2]
[408222592,1773261041651,-500.0,0.00019997,2]
[408222593,1773261041660,-551.27959608,0.00019997,2]
[408222594,1773261041669,-402.46098408,0.00019997,2]
[408222595,1773261041678,-151.0,0.00019997,2]
[408222596,1773261041688,-1000.0,0.00019997,2]
[408222597,1773261041698,-300.0,0.00019999,2]
[408222598,1773261041707,-300.0,0.00019999,2]
[408222599,1773261041719,-300.0,0.00019999,2]
[408222600,1773261041728,-500.0,0.00019999,2]
[408222601,1773261041738,-500.0,0.00019999,2]
[408222602,1773261041748,-500.0,0.00019999,2]
[408222603,1773261041759,-500.0,0.00019999,2]
[408222604,1773261041769,-500.0,0.00019999,2]
[408222605,1773261041779,-500.0,0.00019999,2]
[408222606,1773261041789,-500.0,0.00019999,2]
[408222607,1773261041798,-500.0,0.00019999,2]
[408222608,1773261041807,-500.0,0.00019999,2]
[408222609,1773261041816,-500.0,0.00019999,2]
[408222610,1773261041826,-500.0,0.00019999,2]
[408222611,1773261041835,-500.0,0.00019999,2]
[408222612,1773261041844,-534.16400344,0.00019999,2]
[408222613,1773261041853,-500.0,0.00019999,2]
[408222614,1773261041861,-500.0,0.00019999,2]
[408222615,1773261041871,-234.12874191,0.00019999,2]
[408222616,1773261041881,-500.0,0.00019999,2]
[408222617,1773261041891,-186.98701811,0.00019999,2]
[408222618,1773261041900,-353.19441295,0.00019999,2]
[408222619,1773261041911,-2440968.42925535,0.0002,2]
[408222620,1773261041923,-1558.2299002,0.0002,2]
[408222621,1773261041936,-411.62363276,0.0002,2]
[408222622,1773261041947,-97541.87683908,0.0002,2]
[408222623,1773261041958,-488.27091467,0.0002,2]
[408222624,1773261041969,-42573.89217123,0.0002,2]
[408222625,1773261041980,-443966.67103029,0.0002,2]
[408222626,1773261041995,-2784.03994496,0.0002,2]
[408222628,1773261043118,-53970.38046795,0.0002,2]
[408222629,1773261043129,-10451.710026,0.0002,2]
[408222630,1773261043275,-137409.99999998,0.0002,2]
[408222631,1773261043383,-1067.6817414,0.0002,2]
[408222632,1773261043394,-534.26111805,0.0002,2]
[408222642,1773261046014,-849.0,0.0002,2]
[408222643,1773261046338,-600.0,0.0002,2]
[408222650,1773261140238,500.0,9.4e-05,2]
[408222651,1773261436728,-599.30801854,0.00047482,120]
[408222652,1773261436769,-500.0,0.00047482,120]
[408222653,1773261436807,-500.0,0.00047482,120]
[408222654,1773261436842,-500.0,0.00047482,120]
[408222655,1773261436877,-500.0,0.00047482,120]
[408222656,1773261436912,-500.0,0.00047482,120]
[408222657,1773261436949,-500.0,0.00047482,120]
[408222658,1773261436987,-500.0,0.00047482,120]
[408222659,1773261437023,-500.0,0.00047482,120]
[408222660,1773261437057,-500.0,0.00047482,120]
[408222661,1773261437091,-548.87403795,0.00047482,120]
[408222662,1773261437125,-611842.49770006,0.00047482,61]
[408222663,1773261437159,-10730.0,0.00047482,120]
[408222664,1773261437193,-50000.0,0.00047482,30]
[408222665,1773261437227,-25000.0,0.00047482,35]
[408222666,1773261437487,-500.0,0.00047482,120]
[408222667,1773261437526,-500.0,0.00047482,120]
[408222668,1773261437563,-500.60000063,0.00047482,120]
[408222669,1773261437598,-200.78,0.00047482,120]
[408222670,1773261437642,-50000.0,0.00047482,53]
[408222671,1773261437680,-702.39754389,0.00047482,120]
[408222672,1773261437719,-500.0,0.00047482,120]
[408222673,1773261437754,-500.0,0.00047482,120]
[408222674,1773261437790,-500.0,0.00047482,120]
[408222675,1773261437826,-500.0,0.00047482,120]
[408222676,1773261437862,-500.0,0.00047482,120]
[408222677,1773261437899,-500.0,0.00047482,120]
[408222678,1773261437933,-194.06234733,0.00047482,120]
[408222679,1773261437973,-161.82556,0.00047482,60]
[408222680,1773261438008,-4780.53403,0.00047482,60]
[408222681,1773261438044,-4780.53403,0.00047482,60]
[408222682,1773261438079,-161.82556,0.00047482,60]
[408222683,1773261438115,-4780.53403,0.00047482,60]
[408222684,1773261438151,-161.82556,0.00047482,60]
[408222685,1773261438186,-4780.53403,0.00047482,60]
[408222686,1773261438222,-4780.53403,0.00047482,60]
[408222687,1773261438257,-161.82556,0.00047482,60]
[408222688,1773261438292,-500.0,0.00047482,120]
[408222689,1773261438326,-480.0,0.00047482,120]
[408222690,1773261438361,-40008.00019,0.00047482,45]
[408222691,1773261438398,-40008.00019,0.00047482,45]
[408222692,1773261438433,-40008.00019,0.00047482,45]
[408222693,1773261438469,-40008.00019,0.00047482,45]
[408222694,1773261438504,-40008.00019,0.00047482,45]
[408222695,1773261438540,-2000.0,0.00047482,120]
[408222696,1773261438578,-500.0,0.00047482,120]
[408222697,1773261438617,-500.0,0.00047482,120]
[408222698,1773261438655,-500.0,0.00047482,120]
[408222699,1773261438693,-500.0,0.00047482,120]
[408222700,1773261438729,-500.0,0.00047482,120]
[408222701,1773261438767,-500.0,0.00047482,120]
[408222702,1773261438803,-500.0,0.00047482,120]
[408222703,1773261438839,-615.85587729,0.00047482,120]
[408222704,1773261438875,-500.0,0.00047482,120]
[408222705,1773261438910,-500.3,0.00047482,120]
[408222706,1773261438945,-500.0,0.00047482,120]
[408222707,1773261438979,-59647.61672309,0.00047482,60]
[408222708,1773261439013,-1500.86,0.00047482,120]
[408222709,1773261439048,-1500.86,0.00047482,120]
[408222710,1773261439083,-1500.86,0.00047482,120]
[408222711,1773261439117,-1500.86,0.00047482,120]
[408222712,1773261439152,-1500.86,0.00047482,120]
[408222713,1773261439187,-1500.86,0.00047482,120]
[408222714,1773261439222,-1500.86,0.00047482,120]
[408222715,1773261439257,-1500.86,0.00047482,120]
[408222716,1773261439293,-1500.86,0.00047482,120]
[408222717,1773261439327,-1500.86,0.00047482,120]
[408222718,1773261439362,-1500.86,0.00047482,120]
[408222719,1773261439398,-1500.86,0.00047482,120]
[408222720,1773261439435,-1500.86,0.00047482,120]
[408222721,1773261439470,-1500.86,0.00047482,120]
[408222722,1773261439505,-1500.86,0.00047482,120]
[408222723,1773261439541,-1500.86,0.00047482,120]
[408222724,1773261439576,-1500.86,0.00047482,120]
[408222725,1773261439613,-1500.86,0.00047482,120]
[408222726,1773261439648,-1500.86,0.00047482,120]
[408222727,1773261439686,-1500.86,0.00047482,120]
[408222728,1773261439721,-1500.86,0.00047482,120]
[408222729,1773261439756,-1500.86,0.00047482,120]
[408222730,1773261439795,-1500.86,0.00047482,120]
[408222731,1773261439832,-1501.03010676,0.00047482,120]
[408222732,1773261439868,-165.84017751,0.00047482,120]
[408222733,1773261439902,-20566.56,0.00047482,120]
[408222734,1773261439937,-500.0,0.00047482,120]
[408222735,1773261439972,-500.0,0.00047482,120]
[408222736,1773261440008,-500.0,0.00047482,120]
[408222737,1773261440047,-500.0,0.00047482,120]
[408222738,1773261440087,-500.0,0.00047482,120]
[408222739,1773261440125,-500.0,0.00047482,120]
[408222740,1773261440163,-500.0,0.00047482,120]
[408222741,1773261440200,-500.0,0.00047482,120]
[408222742,1773261440237,-500.0,0.00047482,120]
[408222743,1773261440276,-500.0,0.00047482,120]
[408222744,1773261440314,-500.0,0.00047482,120]
[408222745,1773261440352,-500.0,0.00047482,120]
[408222746,1773261440389,-500.0,0.00047482,120]
[408222747,1773261440427,-500.0,0.00047482,120]
[408222748,1773261440463,-500.0,0.00047482,120]
[408222749,1773261440499,-500.0,0.00047482,120]
[408222750,1773261440535,-500.0,0.00047482,120]
[408222751,1773261440569,-500.0,0.00047482,120]
[408222752,1773261440606,-500.0,0.00047482,120]
[408222753,1773261440647,-500.0,0.00047482,120]
[408222754,1773261440684,-369.11171803,0.00047482,120]
[408222755,1773261440724,-151.0,0.00047482,120]
[408222756,1773261440761,-500.0,0.00047482,120]
[408222757,1773261440798,-500.0,0.00047482,120]
[408222758,1773261440837,-500.0,0.00047482,120]
[408222759,1773261440873,-500.0,0.00047482,120]
[408222760,1773261440908,-500.0,0.00047482,120]
[408222761,1773261440943,-500.0,0.00047482,120]
[408222762,1773261440978,-611.72365577,0.00047482,120]
[408222763,1773261441013,-500.0,0.00047482,120]
[408222764,1773261441049,-404.74,0.00047482,120]
[408222765,1773261441084,-500.0,0.00047482,120]
[408222766,1773261441120,-500.0,0.00047482,120]
[408222767,1773261441156,-500.0,0.00047482,120]
[408222768,1773261441191,-500.0,0.00047482,120]
[408222769,1773261441360,-500.0,0.00047482,120]
[408222770,1773261441398,-500.0,0.00047482,120]
[408222771,1773261441435,-500.0,0.00047482,120]
[408222772,1773261441473,-500.0,0.00047482,120]
[408222773,1773261441511,-500.0,0.00047482,120]
[408222774,1773261441547,-500.0,0.00047482,120]
[408222775,1773261441583,-500.0,0.00047482,120]
[408222776,1773261441620,-500.0,0.00047482,120]
[408222777,1773261441659,-500.0,0.00047482,120]
[408222778,1773261441697,-500.0,0.00047482,120]
[408222779,1773261441735,-484.28,0.00047482,120]
[408222780,1773261441774,-500.0,0.00047482,120]
[408222781,1773261441813,-500.0,0.00047482,120]
[408222782,1773261441849,-379.0,0.00047482,120]
[408222783,1773261441885,-1109.0,0.00047482,30]
[408222784,1773261441921,-5579.47384532,0.00047482,30]
[408222785,1773261441956,-500.0,0.00047482,120]
[408222786,1773261441992,-4577.3112,0.00047482,120]
[408222787,1773261442029,-4577.3112,0.00047482,120]
[408222788,1773261442064,-4577.3112,0.00047482,120]
[408222789,1773261442099,-4577.3112,0.00047482,120]
[408222790,1773261442134,-4577.3112,0.00047482,120]
[408222791,1773261442170,-4577.3112,0.00047482,120]
[408222792,1773261442204,-4577.3112,0.00047482,120]
[408222793,1773261442239,-4577.3112,0.00047482,120]
[408222794,1773261442273,-4577.3112,0.00047482,120]
[408222795,1773261442307,-4577.3112,0.00047482,120]
[408222796,1773261442344,-4577.3112,0.00047482,120]
[408222797,1773261442378,-4577.3112,0.00047482,120]
[408222798,1773261442415,-4577.3112,0.00047482,120]
[408222799,1773261442451,-4577.3112,0.00047482,120]
[408222800,1773261442488,-4577.3112,0.00047482,120]
[408222801,1773261442525,-4577.3112,0.00047482,120]
[408222802,1773261442561,-4577.3112,0.00047482,120]
[408222803,1773261442597,-4577.3112,0.00047482,120]
[408222804,1773261442636,-4577.3112,0.00047482,120]
[408222805,1773261442672,-4577.31287405,0.00047482,120]
[408222806,1773261442708,-10416.66,0.00047482,120]
[408222807,1773261442745,-10416.66,0.00047482,120]
[408222808,1773261442778,-10416.66,0.00047482,120]
[408222809,1773261442814,-10416.66,0.00047482,120]
[408222810,1773261442850,-10416.66,0.00047482,120]
[408222811,1773261442884,-10416.66,0.00047482,120]
[408222812,1773261442917,-10416.66,0.00047482,120]
[408222813,1773261442951,-10416.66,0.00047482,120]
[408222814,1773261442985,-10416.66,0.00047482,120]
[408222815,1773261443017,-10416.66,0.00047482,120]
[408222816,1773261443050,-10416.66,0.00047482,120]
[408222817,1773261443086,-10416.66,0.00047482,120]
[408222818,1773261443121,-10416.66,0.00047482,120]
[408222819,1773261443160,-10416.66,0.00047482,120]
[408222820,1773261443199,-10416.66,0.00047482,120]
[408222821,1773261443237,-10416.66,0.00047482,120]
[408222822,1773261443276,-10416.66,0.00047482,120]
[408222823,1773261443312,-10416.66,0.00047482,120]
[408222824,1773261443345,-10416.66,0.00047482,120]
[408222825,1773261443383,-10416.66,0.00047482,120]
[408222826,1773261443418,-10416.66,0.00047482,120]
[408222827,1773261443453,-10416.66,0.00047482,120]
[408222828,1773261443487,-10416.66,0.00047482,120]
[408222829,1773261443522,-10416.82694777,0.00047482,120]
[408222830,1773261443559,-500.0,0.00047482,120]
[408222831,1773261443595,-500.0,0.00047482,120]
[408222832,1773261443630,-500.0,0.00047482,120]
[408222833,1773261460863,-500.0,0.00015,30]
[408222834,1773261460900,-500.0,0.00015,30]
[408222835,1773261460933,-500.0,0.00015,30]
[408222836,1773261460968,-678.73613672,0.00015,30]
[408222837,1773261461001,-500.0,0.00015,30]
[408222838,1773261461056,-161.98181319,0.00024155,120]
[408222839,1773261461091,-163.9722186,0.00024155,120]
[408222840,1773261461130,-594.93,0.00025629,120]
[408222841,1773261461167,-594.93,0.00028192,120]
[408222842,1773261461200,-5152.11690341,0.00029,120]
[408222843,1773261461250,-192.36,0.00030411,120]
[408222844,1773261461287,-594.93,0.00030755,120]
[408222845,1773261461324,-849.3771789,0.00031123,30]
[408222846,1773261461359,-849.3771789,0.00031233,30]
[408222847,1773261461395,-849.3771789,0.0003137,30]
[408222848,1773261461431,-849.3771789,0.00031479,30]
[408222849,1773261461471,-849.3771789,0.00031616,30]
[408222850,1773261461508,-849.3771789,0.00031753,30]
[408222851,1773261461542,-849.3771789,0.00031863,30]
[408222852,1773261461578,-849.3771789,0.00032,30]
[408222853,1773261461615,-849.3771789,0.0003211,30]
[408222854,1773261461652,-849.3771789,0.00032247,30]
[408222855,1773261461690,-849.3771789,0.00032356,30]
[408222856,1773261461727,-849.3771789,0.00032493,30]
[408222857,1773261461767,-4658.84519977,0.00032827,30]
[408222858,1773261461808,-2876.999999,0.00033,30]
[408222859,1773261461845,-160.0,0.00033,30]
[408222860,1773261461884,-151.47,0.00034094,30]
[408222861,1773261461922,-5424.58688015,0.0003443,37]
[408222862,1773261461960,-151.47,0.00035617,30]
[408222863,1773261461995,-150.0,0.00035786,30]
[408222864,1773261462030,-5782.41605009,0.00036033,45]
[408222865,1773261462064,-500.0,0.00036155,40]
[408222866,1773261462102,-227.95264467,0.00036865,49]
[408222867,1773261462137,-394.71,0.00036893,30]
[408222868,1773261462172,-151.47,0.00037139,30]
[408222869,1773261462208,-6155.2440096,0.00037637,52]
[408222870,1773261462243,-400.0,0.0003809,50]
[408222871,1773261462278,-151.47,0.00038661,30]
[408222872,1773261462314,-6876.03268714,0.0003924,60]
[408222873,1773261462351,-356.41230325,0.00039616,62]
[408222874,1773261462390,-3073.54,0.0004,120]
[408222875,1773261462429,-160.0,0.0004,120]
[408222876,1773261462467,-151.47,0.00040183,30]
[408222877,1773261462505,-115537.0,0.0004095,60]
[408222878,1773261462542,-285.595006,0.0004095,120]
[408222879,1773261462576,-285.595006,0.0004095,120]
[408222880,1773261462610,-285.595006,0.0004095,120]
[408222881,1773261462651,-285.595014,0.0004095,120]
[408222882,1773261462691,-151.0,0.0004095,120]
[408222883,1773261462728,-151.0,0.0004095,120]
[408222884,1773261462768,-151.0,0.00041,120]
[408222885,1773261462804,-508.01012091,0.00041068,120]
[408222886,1773261462840,-217.71862325,0.00041068,120]
[408222887,1773261462874,-50000.0,0.00041096,60]
[408222888,1773261462908,-2135.23211376,0.00041096,30]
[408222889,1773261462942,-150.0,0.0004127,120]
[408222890,1773261462977,-296.03,0.0004127,120]
[408222891,1773261463011,-200.0,0.00041465,120]
[408222892,1773261463048,-151.47,0.00041705,30]
[408222893,1773261463087,-198.20285658,0.00041781,30]
[408222894,1773261463122,-269.45593814,0.00042,120]
[408222895,1773261463156,-150.0,0.00042173,120]
[408222896,1773261463190,-115537.0,0.000423,60]
[408222897,1773261463226,-364.92302028,0.00042367,74]
[408222898,1773261463263,-7677.8319261,0.00042447,75]
[408222899,1773261463298,-1332.228,0.00042498,64]
[408222900,1773261463331,-1000.0,0.00043,120]
[408222901,1773261463364,-1000.0,0.00043,120]
[408222902,1773261463405,-1000.0,0.00043,120]
[408222903,1773261463442,-3139.46102284,0.00043,120]
[408222904,1773261463483,-250.0,0.00043068,120]
[408222905,1773261463527,-250.0,0.00043068,120]
[408222906,1773261463571,-250.0,0.00043068,120]
[408222907,1773261463614,-250.0,0.00043068,120]
[408222908,1773261463658,-250.0,0.00043068,120]
[408222909,1773261463703,-250.0,0.00043068,120]
[408222910,1773261463747,-151.47,0.00043227,30]
[408222911,1773261463790,-400.0,0.00043372,83]
[408222912,1773261463831,-1266.58,0.000434,90]
[408222913,1773261463872,-150.0,0.000435,120]
[408222914,1773261463914,-115537.0,0.0004365,60]
[408222915,1773261463955,-786.0,0.00043836,120]
[408222916,1773261463996,-1016.0,0.00044,30]
[408222917,1773261464037,-72000.0,0.00044,120]
[408222918,1773261464080,-150.0,0.00044,57]
[408222919,1773261464121,-150.0,0.00044,120]
[408222920,1773261464169,-7743.98135787,0.0004405,89]
[408222921,1773261464215,-150.0,0.00044281,120]
[408222922,1773261464258,-374.66,0.00044384,120]
[408222923,1773261464302,-200.0,0.00044412,120]
[408222924,1773261464344,-1025.9,0.00044466,120]
[408222925,1773261464387,-150.0,0.000445,120]
[408222926,1773261464429,-263.20974043,0.00044632,120]
[408222927,1773261464472,-3250.0,0.000447,30]
[408222928,1773261464515,-151.47,0.00044749,30]
[408222929,1773261464556,-1044.5,0.00044992,120]
[408222930,1773261464594,-185.52323359,0.00044997,120]
[408222931,1773261464630,-1488.74349915,0.00045,120]
[408222932,1773261464667,-200080.00000004,0.00045,30]
[408222933,1773261464707,-115537.0,0.00045,60]
[408222934,1773261464907,-150.0,0.00045,120]
[408222935,1773261464948,-426.51,0.00045,120]
[408222936,1773261464989,-272.17,0.00045,120]
[408222937,1773261465031,-150.0,0.00045,30]
[408222938,1773261465071,-150.0,0.00045,30]
[408222939,1773261465109,-150.0,0.00045,30]
[408222940,1773261465147,-150.0,0.00045,30]
[408222941,1773261465185,-150.0,0.00045,30]
[408222942,1773261465222,-150.0,0.00045,30]
[408222943,1773261465259,-150.0,0.00045,30]
[408222944,1773261465299,-150.0,0.00045,30]
[408222945,1773261465336,-150.0,0.00045,30]
[408222946,1773261465375,-150.0,0.00045,30]
[408222947,1773261465414,-150.0,0.00045,30]
[408222948,1773261465453,-150.0,0.00045083,30]
[408222949,1773261465491,-386.69729614,0.00045118,99]
[408222950,1773261465530,-150.0,0.00045167,30]
[408222951,1773261465567,-150.0,0.00045172,30]
[408222952,1773261465604,-150.0,0.00045192,30]
[408222953,1773261465650,-524.606221,0.00045205,120]
[408222954,1773261465691,-524.606221,0.00045205,120]
[408222955,1773261465734,-524.606221,0.00045205,120]
[408222956,1773261465773,-524.606221,0.00045205,120]
[408222957,1773261465812,-524.606221,0.00045205,120]
[408222958,1773261465849,-524.606221,0.00045205,120]
[408222959,1773261465888,-524.606221,0.00045205,120]
[408222960,1773261465926,-524.606221,0.00045205,120]
[408222961,1773261465964,-524.606221,0.00045205,120]
[408222962,1773261466002,-524.606221,0.00045205,120]
[408222963,1773261466041,-524.606221,0.00045205,120]
[408222964,1773261466079,-524.606221,0.00045205,120]
[408222965,1773261466116,-524.606221,0.00045205,120]
[408222966,1773261466155,-524.606221,0.00045205,120]
[408222967,1773261466191,-524.606221,0.00045205,120]
[408222968,1773261466228,-524.606221,0.00045205,120]
[408222969,1773261466263,-524.606221,0.00045205,120]
[408222970,1773261466299,-524.606221,0.00045205,120]
[408222971,1773261466336,-524.606221,0.00045205,120]
[408222972,1773261466373,-524.606225,0.00045205,120]
[408222973,1773261466411,-150.0,0.00045227,30]
[408222974,1773261466448,-150.0,0.0004525,30]
[408222975,1773261466485,-150.0,0.00045278,30]
[408222976,1773261466524,-2000.0,0.00045332,120]
[408222977,1773261466565,-150.0,0.00045333,30]
[408222978,1773261466601,-150.0,0.00045345,30]
[408222979,1773261466638,-150.0,0.00045385,30]
[408222980,1773261466677,-150.0,0.00045417,30]
[408222981,1773261466714,-150.0,0.00045455,30]
[408222982,1773261466753,-150.0,0.00045455,30]
[408222983,1773261466792,-9237.39502451,0.00045482,120]
[408222984,1773261466829,-249.44704722,0.000455,120]
[408222985,1773261466866,-150.0,0.000455,30]
[408222986,1773261466902,-150.0,0.00045517,30]
[408222987,1773261466940,-1044.5,0.00045518,120]
[408222988,1773261466976,-150.0,0.00045556,30]
[408222989,1773261467015,-150.0,0.00045577,30]
[408222990,1773261467055,-150.0,0.00045583,30]
[408222991,1773261467092,-150.0,0.00045625,30]
[408222992,1773261467131,-150.0,0.00045667,30]
[408222993,1773261467167,-150.0,0.00045682,30]
[408222994,1773261467204,-150.0,0.0004569,30]
[408222995,1773261467244,-161.51506796,0.00045699,30]
[408222996,1773261467282,-164.7592432,0.00045699,30]
[408222997,1773261467318,-150.0,0.0004575,30]
[408222998,1773261467354,-150.0,0.00045769,30]
[408222999,1773261467390,-150.0,0.00045833,30]
[408223000,1773261467427,-150.0,0.00045833,30]
[408223001,1773261467463,-500.0,0.00045846,60]
[408223002,1773261467499,-500.0,0.00045846,60]
[408223003,1773261467535,-150.0,0.00045862,30]
[408223004,1773261467570,-353.6196143,0.0004589,120]
[408223005,1773261467607,-150.0,0.00045909,30]
[408223006,1773261467645,-150.0,0.00045909,30]
[408223007,1773261467681,-150.0,0.00045917,30]
[408223008,1773261467716,-150.0,0.00045931,120]
[408223009,1773261467753,-150.0,0.00045962,30]
[408223010,1773261467789,-400.0,0.0004599,120]
[408223011,1773261467822,-150045.0,0.00046,30]
[408223012,1773261467858,-150.0,0.00046,30]
[408223013,1773261467893,-150.0,0.00046,30]
[408223014,1773261467927,-150.0,0.00046,30]
[408223015,1773261467962,-161.51506796,0.00046027,30]
[408223016,1773261467998,-150.0,0.00046034,30]
[408223017,1773261468035,-150.0,0.00046083,30]
[408223018,1773261468071,-150.0,0.00046111,30]
[408223019,1773261468108,-150.0,0.00046136,30]
[408223020,1773261468143,-150.0,0.00046154,30]
[408223021,1773261468178,-150.0,0.00046167,30]
[408223022,1773261468213,-150.0,0.00046207,30]
[408223023,1773261468247,-164.7592432,0.00046219,30]
[408223024,1773261468282,-150.0,0.0004625,30]
[408223025,1773261468318,-150.0,0.0004625,30]
[408223026,1773261468354,-500.0,0.00046254,40]
[408223027,1773261468390,-500.0,0.00046254,30]
[408223028,1773261468429,-151.47,0.00046271,30]
[408223029,1773261468467,-150.0,0.00046333,30]
[408223030,1773261468505,-150.0,0.00046346,30]
[408223031,1773261468542,-115537.0,0.0004635,60]
[408223032,1773261468576,-150.0,0.00046364,30]
[408223033,1773261468612,-150.0,0.00046364,30]
[408223034,1773261468653,-150.0,0.00046379,30]
[408223035,1773261468693,-161.51506796,0.00046384,30]